bitfinex-derivatives/quotes_ETHF0:USTF0_20250614
["timestamp","ask_amount","ask_price","bid_price","bid_amount"]
[1749920620059,2.5094481,2499.1,2498.6,6.36310926]
[1749920620262,0.80001,2498.8,2498.7,1.6324]
[1749920620460,0.80001,2498.8,2498.7,7.19544926]
[1749920620658,0.80001,2498.8,2498.7,42.76244926]
[1749920620860,1.99963,2499.3,2498.7,42.76244926]
[1749920621170,1.99949,2499.5,2499.2,5.56304926]
[1749920621356,0.86805268,2498.9,2498.8,10.46214926]
[1749920621558,0.86805268,2498.9,2498.8,1.6913]
[1749920621759,0.86805268,2498.9,2498.8,42.80534926]
[1749920622358,0.79996,2498.9,2498.8,7.25434926]
[1749920622664,0.79996,2498.9,2498.8,32.80904926]
[1749920623466,0.79996,2498.9,2498.8,32.80504926]
[1749920623762,3.3094081,2498.9,2498.8,32.80504926]
[1749920624958,0.79999,2498.8,2498.7,3.2078]
[1749920625160,0.79999,2498.8,2498.7,8.77084926]
[1749920625359,3.3094381,2498.8,2498.7,5.56304926]
[1749920627268,0.79999,2498.8,2498.7,6.36306926]
[1749920627561,2.07696428,2498.8,2498.7,5.56304926]
[1749920629659,7.69424856,2498.8,2498.7,5.56304926]
[1749920631460,7.76234124,2498.8,2498.7,5.56304926]
[1749920632068,6.96235124,2498.8,2498.4,1.7262]
[1749920632265,3.90789618,2498.6,2498.5,5.56304926]
[1749920632464,0.80009,2498.5,2498.4,5.56304926]
[1749920632763,0.80009,2498.5,2498.2,7.9700113]
[1749920632764,0.80015,2498.3,2498.2,7.9700113]
[1749920632965,5.19350462,2498.3,2498.2,13.53306056]
[1749920633366,4.58657238,2498.3,2498.2,0.0060113]
[1749920633563,0.80028,2497.9,2497.8,6.7513]
[1749920633864,2.07725428,2497.9,2497.8,1.7258]
[1749920634058,0.80038,2497.6,2497.5,3.2078]
[1749920634370,5.19583701,2497.6,2497.5,3.2078]
[1749920634559,4.39545701,2497.6,2497.5,36.58525926]
[1749920634759,1.27697428,2497.6,2497.5,9.57125926]
[1749920634956,1.27697428,2497.6,2497.5,44.54325926]
[1749920635160,3.6181203,2497.6,2497.5,44.54325926]
[1749920635373,1.27697428,2497.6,2497.5,44.54325926]
[1749920635572,3.6181203,2497.6,2497.5,49.54325926]
[1749920635867,1.27697428,2497.6,2497.5,14.57125926]
[1749920636068,3.6181203,2497.6,2497.5,44.52625926]
[1749920636263,1.27697428,2497.6,2497.5,49.52625926]
[1749920636658,3.6181203,2497.6,2497.5,49.52625926]
[1749920637268,0.00597802,2497.8,2497.7,0.80034]
[1749920637468,1.30930536,2497.8,2497.7,6.36338926]
[1749920637669,2.10961536,2497.8,2497.7,6.36338926]
[1749920637968,1.30930536,2497.8,2497.7,6.36338926]
[1749920638158,2.10961536,2497.8,2497.7,6.36338926]
[1749920638362,1.30930536,2497.8,2497.7,41.28638926]
[1749920638771,1.30930536,2497.8,2497.7,41.26438926]
[1749920639264,1.30810658,2497.8,2497.7,41.26438926]
[1749920639669,2.34114602,2498.2,2498.1,0.80022]
[1749920639870,2.34114602,2498.3,2498.2,0.80018]
[1749920640073,0.80015,2498.3,2498.2,7.37564926]
[1749920640266,3.3095981,2498.3,2498.2,42.23864926]
[1749920640564,3.3095981,2498.3,2498.2,7.37564926]
[1749920640768,6.32912051,2498.5,2498.2,34.27364926]
[1749920640963,0.80014,2498.4,2498.3,7.37564926]
[1749920641164,3.92144051,2498.4,2498.3,34.864]
[1749920641370,6.43088861,2498.4,2498.3,40.42704926]
[1749920641667,0.80012,2498.4,2498.3,40.42704926]
[1749920642259,3.15626626,2498.4,2498.3,42.23964926]
[1749920642664,0.80012,2498.4,2498.3,42.23964926]
[1749920643464,3.1580791,2498.4,2498.3,42.23964926]
[1749920644070,3.1580791,2498.4,2498.3,7.37564926]
[1749920644369,3.1580791,2498.4,2498.3,42.19864926]
[1749920644566,4.8674072,2498.4,2498.3,2.61277]
[1749920644770,2.00051,2498.2,2497.7,8.01350116]
[1749920644973,2.00091,2497.8,2497.4,5.56304926]
[1749920645169,0.80043,2497.5,2497.4,5.56304926]
[1749920645569,3.15577712,2497.5,2497.4,5.56304926]
[1749920646371,0.80043,2497.5,2497.4,5.56304926]
[1749920646969,0.80046,2497.4,2497.2,26.902]
[1749920647473,0.80046,2497.4,2497.3,5.56906056]
[1749920647669,0.80046,2497.4,2497.3,7.22256056]
[1749920647969,0.80046,2497.4,2497.3,5.56906056]
[1749920648170,0.80059,2497.0,2496.9,28.4985]
[1749920648675,2.35534712,2497.5,2496.9,34.06154926]
[1749920648877,0.80056,2497.1,2497.0,32.40404926]
[1749920649066,0.80056,2497.1,2497.0,34.90563926]
[1749920649266,2.00112,2497.5,2497.0,34.10204926]
[1749920649267,0.0060113,2497.3,2497.0,34.10204926]
[1749920649471,0.0060113,2497.3,2497.2,0.80052]
[1749920649775,0.0060113,2497.3,2497.2,6.36356926]
[1749920649973,0.0060113,2497.3,2497.2,8.06456926]
[1749920650873,3.2078,2498.0,2497.6,0.80038]
[1749920651079,0.80033,2497.8,2497.7,29.31136]
[1749920651378,3.2078,2498.0,2497.9,5.55697796]
[1749920651779,4.47470752,2498.0,2497.9,5.55697796]
[1749920652083,5.27497752,2498.0,2497.9,4.75667796]
[1749920652474,5.27497752,2498.0,2497.9,6.48577796]
[1749920653071,5.27497752,2498.0,2497.9,7.28607796]
[1749920653072,3.2078,2498.0,2497.9,7.28607796]
[1749920653277,0.80021,2498.2,2497.9,6.48577796]
[1749920653472,0.80021,2498.2,2498.1,0.80023]
[1749920653676,2.06818467,2498.2,2498.1,32.32590796]
[1749920653878,0.06809268,2498.4,2498.1,41.46257796]
[1749920654080,0.06809268,2498.4,2498.3,5.55684796]
[1749920654282,2.1358274,2498.4,2498.3,7.28594796]
[1749920654478,1.3356874,2498.4,2498.3,7.28594796]
[1749920654679,0.06809268,2498.4,2498.3,7.28594796]
[1749920654879,2.13567886,2498.4,2498.3,6.48577796]
[1749920656083,2.13567886,2498.4,2498.3,7.28594796]
[1749920656285,2.13567886,2498.4,2498.3,6.48577796]
[1749920656476,1.33553886,2498.4,2498.3,7.28594796]
[1749920657386,2.13567886,2498.4,2498.3,7.28594796]
[1749920658283,2.13567886,2498.4,2498.3,6.48577796]
[1749920658480,2.13567886,2498.4,2498.1,7.6980113]
[1749920658481,0.8002,2498.2,2498.1,0.0060113]
[1749920658672,0.80019,2498.3,2498.2,4.75667796]
[1749920658878,2.06274928,2498.3,2498.2,5.55687796]
[1749920659082,2.06274928,2498.3,2498.2,4.75667796]
[1749920659281,0.8002,2498.2,2498.1,0.0060113]
[1749920659578,2.06275928,2498.2,2498.1,0.0060113]
[1749920661179,2.06275928,2498.2,2498.1,4.76268926]
[1749920661374,2.06275928,2498.2,2498.1,0.0060113]
[1749920661973,2.0006,2498.1,2497.8,26.73]
[1749920662178,0.8003,2497.9,2497.8,31.48667796]
[1749920662384,2.06285928,2497.9,2497.8,26.73]
[1749920662686,2.06285928,2497.9,2497.8,31.48667796]
[1749920662687,0.8003,2497.9,2497.8,31.48667796]
[1749920663583,0.80036,2497.7,2497.6,0.0060113]
[1749920663985,6.62834,2497.8,2497.7,0.80036]
[1749920664186,0.80036,2497.7,2497.6,2.5574913]
[1749920664490,3.2138113,2498.1,2497.6,2.5574913]
[1749920664491,9.0418113,2498.1,2497.7,4.75667796]
[1749920664685,0.80033,2497.8,2497.7,5.55701796]
[1749920664881,11.0424213,2498.1,2497.8,4.75667796]
[1749920665086,11.0424213,2498.1,2497.7,5.55702796]
[1749920665087,0.80033,2497.8,2497.7,5.55702796]
[1749920665401,9.0418113,2498.1,2497.7,4.75667796]
[1749920665698,3.2138113,2498.1,2497.8,39.12167796]
[1749920665987,0.80027,2498.0,2497.9,0.80027]
[1749920666186,0.0060113,2498.1,2498.0,0.80027]
[1749920666489,0.8062413,2498.1,2498.0,4.75667796]
[1749920666690,0.8062413,2498.1,2498.0,5.55694796]
[1749920667185,0.0060113,2498.1,2498.0,5.55694796]
[1749920671494,0.06809268,2498.4,2498.3,0.80017]
[1749920671697,0.06809268,2498.4,2498.3,39.88684796]
[1749920672192,0.06809268,2498.4,2498.3,43.09464796]
[1749920673496,3.2078,2499.1,2498.3,47.29447796]
[1749920673692,3.2078,2499.1,2499.0,0.79995]
[1749920673887,3.2078,2499.1,2499.0,27.43795]
[1749920674089,4.00771,2499.1,2499.0,32.19462796]
[1749920674392,3.2078,2499.1,2499.0,32.19462796]
[1749920674686,3.2078,2499.5,2499.0,31.39467796]
[1749920674998,0.79983,2499.4,2499.3,0.79982]
[1749920675193,4.0076,2499.5,2499.3,26.636]
[1749920675399,4.00759,2499.5,2499.4,4.75667796]
[1749920676096,3.2078,2499.5,2499.4,5.55649796]
[1749920676501,3.2078,2499.5,2499.4,7.21599796]
[1749920677291,2.30689733,2500.1,2499.6,0.79975]
[1749920677593,0.79969,2499.8,2499.7,31.38867796]
[1749920678292,3.2078,2500.2,2499.8,0.79967]
[1749920678492,0.7996,2500.1,2499.9,4.75667796]
[1749920678694,0.79959,2500.1,2500.0,26.632]
[1749920678888,0.79959,2500.1,2500.0,31.38867796]
[1749920679496,0.79966,2499.9,2499.8,28.4623]
[1749920679698,4.00746,2499.9,2499.8,28.4623]
[1749920679904,0.79979,2499.5,2499.4,1.6595]
[1749920680092,0.79979,2499.5,2499.4,35.9745]
[1749920680297,0.79977,2499.6,2499.4,40.73117796]
[1749920680498,5.20676,2500.2,2499.5,4.75667796]
[1749920680701,0.79975,2499.6,2499.5,4.75667796]
[1749920680904,0.79979,2499.5,2499.4,35.9745]
[1749920681203,0.79977,2499.6,2499.5,4.75667796]
[1749920681391,1.99899,2500.1,2499.5,6.58697796]
[1749920681596,0.79972,2499.7,2499.6,31.38267796]
[1749920682191,0.79972,2499.7,2499.6,4.75667796]
[1749920682397,0.79972,2499.7,2499.6,39.07167796]
[1749920683102,3.5274,2500.1,2499.6,39.07167796]
[1749920683304,0.79969,2499.8,2499.7,33.16977796]
[1749920684100,0.79969,2499.8,2499.7,40.85777796]
[1749920684508,0.79969,2499.8,2499.7,6.54677796]
[1749920684710,0.79969,2499.8,2499.7,31.37967796]
[1749920685208,0.79969,2499.8,2499.7,32.17939796]
[1749920685403,0.79969,2499.8,2499.7,40.67377796]
[1749920685800,0.79969,2499.8,2499.7,41.47349796]
[1749920686308,0.79969,2499.8,2499.7,40.67177796]
[1749920687008,0.79969,2499.8,2499.7,41.47149796]
[1749920687309,0.79969,2499.8,2499.7,40.67177796]
[1749920688607,0.79969,2499.8,2499.7,40.66977796]
[1749920689312,0.86778268,2499.8,2499.7,40.66977796]
[1749920690208,0.86778268,2499.8,2499.7,6.42977796]
[1749920690406,0.86778268,2499.8,2499.7,40.66777796]
[1749920692302,0.86778268,2499.8,2499.7,41.46750796]
[1749920692803,0.06809268,2499.8,2499.7,41.46750796]
[1749920692998,0.86779268,2499.8,2499.7,41.46750796]
[1749920693210,0.86779268,2499.8,2499.7,41.46450796]
[1749920694009,0.86779268,2499.8,2499.7,40.66477796]
[1749920694312,0.79978,2499.6,2499.5,7.62]
[1749920694613,0.79978,2499.6,2499.5,35.03476]
[1749920694807,0.79978,2499.6,2499.5,39.79143796]
[1749920695205,0.06809268,2499.8,2499.5,38.99167796]
[1749920695509,0.06809268,2499.8,2499.5,35.03477]
[1749920695713,0.79975,2499.7,2499.6,6.55117796]
[1749920695913,0.79973,2499.7,2499.6,7.35090796]
[1749920696305,0.79973,2499.7,2499.6,6.55117796]
[1749920697107,0.79973,2499.7,2499.6,7.35093796]
[1749920698109,0.79973,2499.7,2499.6,7.62]
[1749920698312,2.05817204,2499.7,2499.6,34.232]
[1749920699512,2.05962339,2499.7,2499.6,34.232]
[1749920700611,1.25989339,2499.7,2499.6,39.78843796]
[1749920701312,1.25989339,2499.7,2499.6,41.50423796]
[1749920701617,0.86779268,2499.8,2499.7,0.79973]
[1749920701811,2.12884549,2499.8,2499.7,5.55640796]
[1749920702118,2.12884549,2499.8,2499.7,39.78640796]
[1749920703408,1.32914549,2499.8,2499.7,39.78640796]
[1749920703618,1.32914549,2499.8,2499.7,42.99420796]
[1749920704611,2.35534712,2500.2,2499.7,42.99420796]
[1749920704612,5.13998915,2500.7,2499.7,42.4378]
[1749920704813,0.79965,2500.0,2499.9,0.79965]
[1749920705021,7.82661,2500.6,2500.0,0.79963]
[1749920705022,0.79962,2500.1,2500.0,0.79963]
[1749920705320,1.99877,2500.4,2500.0,34.226]
[1749920705615,0.86779268,2499.8,2499.7,3.2078]
[1749920706019,0.86779268,2499.8,2499.7,4.00753]
[1749920706218,0.86779268,2499.8,2499.7,37.4328]
[1749920706413,0.86779268,2499.8,2499.7,3.2078]
[1749920706616,0.06809268,2499.8,2499.6,26.605]
[1749920706815,0.06809268,2499.8,2499.7,30.61253]
[1749920707122,2.07068721,2500.7,2500.2,0.79957]
[1749920707425,0.79949,2500.5,2500.3,27.40354]
[1749920707618,3.2078,2500.8,2500.4,26.604]
[1749920707813,0.79947,2500.5,2500.4,26.604]
[1749920708021,3.2078,2500.8,2500.5,0.79946]
[1749920708221,0.79944,2500.7,2500.6,26.603]
[1749920709419,0.79944,2500.7,2500.6,27.40244]
[1749920709622,4.00719,2500.8,2500.7,0.79941]
[1749920709819,3.2078,2500.8,2500.6,27.40242]
[1749920710120,4.0072,2500.8,2500.6,26.603]
[1749920710316,4.0072,2500.8,2500.7,1.7509]
[1749920710718,4.0072,2500.8,2500.7,28.3499]
[1749920710913,4.0072,2500.8,2500.7,29.14931]
[1749920710914,3.2078,2500.8,2500.7,29.14931]
[1749920711116,0.79938,2500.9,2500.7,28.3499]
[1749920711421,0.79938,2500.9,2500.8,1.7509]
[1749920711812,0.79938,2500.9,2500.8,28.3489]
[1749920712116,3.2078,2501.1,2500.8,28.3489]
[1749920712117,0.79934,2501.0,2500.8,28.3489]
[1749920712319,0.79935,2500.9,2500.8,29.14825]
[1749920713417,0.79935,2500.9,2500.8,2.55025]
[1749920713616,0.79935,2500.9,2500.8,36.76225]
[1749920714322,0.79935,2500.9,2500.8,35.9629]
[1749920714922,0.79935,2500.9,2500.8,36.76128]
[1749920716024,0.79935,2500.9,2500.8,36.74828]
[1749920716919,0.79935,2500.9,2500.8,35.9489]
[1749920717422,2.04005141,2500.9,2500.8,36.74828]
[1749920717621,2.04005141,2500.9,2500.8,35.9489]
[1749920717827,2.04005141,2500.9,2500.8,36.74828]
[1749920718222,2.04005141,2500.9,2500.8,9.3559]
[1749920718417,2.04005141,2500.9,2500.8,36.74328]
[1749920718624,1.99809,2501.3,2500.8,36.74328]
[1749920718821,0.79935,2500.9,2500.8,1.7509]
[1749920719025,2.038648,2500.9,2500.8,36.74128]
[1749920719320,1.239298,2500.9,2500.8,36.74128]
[1749920719729,2.10674068,2500.9,2500.8,36.74128]
[1749920719925,2.10674068,2500.9,2500.8,35.9419]
[1749920720124,2.10674068,2500.9,2500.8,35.9389]
[1749920720629,0.86744268,2500.9,2500.8,36.73828]
[1749920720829,0.79938,2500.8,2500.7,3.2078]
[1749920721029,0.79941,2500.7,2500.6,27.38342]
[1749920721226,0.7994,2500.8,2500.7,0.79939]
[1749920721427,2.038064,2500.8,2500.7,2.57789]
[1749920721627,7.866064,2500.8,2500.7,2.57789]
[1749920721931,7.866044,2500.8,2500.7,5.78569]
[1749920722131,7.0769744,2500.8,2500.7,9.40669]
[1749920722630,7.87657137,2500.8,2500.7,9.40669]
[1749920722824,7.07719137,2500.8,2500.7,9.40669]
[1749920723235,7.07719225,2500.8,2500.7,9.40669]
[1749920723431,6.6376904,2500.8,2500.7,8.6073]
[1749920723730,0.79942,2500.7,2500.6,8.40342]
[1749920723928,0.79942,2500.7,2500.6,34.98342]
[1749920724131,0.8097304,2500.7,2500.6,34.98342]
[1749920724427,0.0103104,2500.7,2500.6,34.98342]
[1749920725135,0.0103104,2500.7,2500.6,36.74862]
[1749920725628,3.2078,2501.4,2501.1,0.79927]
[1749920725830,0.79928,2501.2,2501.1,0.79927]
[1749920726029,1.23972859,2501.2,2501.1,27.37627]
[1749920726533,2.03897859,2501.2,2501.1,26.577]
[1749920727141,0.79925,2501.2,2501.1,26.577]
[1749920727734,0.7992,2501.4,2501.3,0.79919]
[1749920727934,0.79923,2501.3,2501.2,0.79922]
[1749920728235,3.2078,2501.7,2501.2,26.574]
[1749920728530,2.03916906,2501.6,2501.5,0.79915]
[1749920728729,1.24003906,2501.6,2501.5,34.97715]
[1749920729129,0.79907,2501.8,2501.5,34.178]
[1749920729428,0.79903,2501.9,2501.5,34.178]
[1749920729634,3.2078,2502.0,2501.9,0.79903]
[1749920729933,4.44857428,2502.0,2501.9,34.97603]
[1749920730134,3.2078,2502.0,2501.9,34.97603]
[1749920730429,4.00679,2502.0,2501.9,34.97603]
[1749920730640,4.00679,2502.0,2501.9,34.177]
[1749920731131,4.00679,2502.0,2501.9,26.568]
[1749920731132,3.2078,2502.0,2501.9,26.568]
[1749920731326,3.60273201,2502.4,2501.8,3.2078]
[1749920731526,1.24002362,2502.3,2501.9,34.171]
[1749920731731,0.79899,2502.0,2501.9,34.97003]
[1749920732038,3.60273201,2502.4,2502.0,0.79899]
[1749920732233,0.79894,2502.2,2502.1,0.79896]
[1749920732439,8.90884,2502.7,2502.2,0.79893]
[1749920732736,0.79887,2502.4,2502.3,26.567]
[1749920733126,0.79887,2502.4,2502.3,27.3659]
[1749920733333,0.79887,2502.4,2502.3,26.567]
[1749920733841,0.7989,2502.3,2502.2,1.814]
[1749920734134,0.7989,2502.3,2502.2,28.38]
[1749920734536,0.7989,2502.3,2502.2,1.814]
[1749920734835,0.79893,2502.2,2502.1,10.8098]
[1749920735038,0.79893,2502.2,2502.1,3.2078]
[1749920735331,0.79893,2502.2,2502.1,37.3708]
[1749920735741,0.06809268,2502.4,2502.1,37.3708]
[1749920736033,0.79899,2502.0,2501.9,1.9052]
[1749920736632,0.79906,2501.8,2501.7,0.00599892]
[1749920736930,4.00686,2501.8,2501.7,8.92e-06]
[1749920737127,12.59841453,2501.8,2501.7,8.92e-06]
[1749920737332,7.59841453,2501.8,2501.7,8.92e-06]
[1749920737539,5.24384154,2501.8,2501.7,8.92e-06]
[1749920738531,7.59841453,2501.8,2501.7,8.92e-06]
[1749920741543,7.60050721,2501.8,2501.7,8.92e-06]
[1749920742643,5.24593422,2501.8,2501.7,8.92e-06]
[1749920743140,7.6021999,2501.8,2501.7,8.92e-06]
[1749920743644,4.3943999,2501.8,2501.7,8.92e-06]
[1749920744142,2.03813422,2501.8,2501.7,8.92e-06]
[1749920745939,2.03813422,2501.8,2501.7,1.81100892]
[1749920748347,7.86613422,2501.8,2501.7,1.81100892]
[1749920750244,7.9342269,2501.8,2501.7,1.81100892]
[1749920750441,7.9342269,2501.8,2501.7,2.61009892]
[1749920750651,7.9342269,2501.8,2501.7,1.81100892]
[1749920751245,6.69515268,2501.8,2501.7,1.81100892]
[1749920752550,6.69515268,2501.8,2501.7,2.61009892]
[1749920753249,6.69515268,2501.8,2501.7,1.81100892]
[1749920754247,7.9362388,2501.8,2501.7,8.92e-06]
[1749920756455,7.9362388,2501.8,2501.7,1.82800892]
[1749920757142,7.9362388,2501.8,2501.7,4.41049892]
[1749920757346,7.9362388,2501.8,2501.7,3.61140892]
[1749920758245,7.9362388,2501.8,2501.7,1.82800892]
[1749920758559,7.9362388,2501.8,2501.7,8.92e-06]
[1749920759150,7.9371115,2501.8,2501.7,8.92e-06]
[1749920759355,7.5367115,2501.8,2501.7,8.92e-06]
[1749920759555,6.29475268,2501.8,2501.7,8.92e-06]
[1749920760358,12.05915268,2501.8,2501.7,8.92e-06]
[1749920761962,0.79925,2501.2,2501.1,1.7717]
[1749920762260,6.62725,2501.2,2501.1,1.7717]
[1749920764555,6.62725,2501.2,2501.1,2.57098]
[1749920764759,5.828,2501.2,2501.1,2.57098]
[1749920765558,5.89609268,2501.2,2501.1,2.57098]
[1749920765756,0.06809268,2501.2,2501.1,4.163764]
[1749920765951,0.06809268,2501.2,2501.1,7.57098]
[1749920766155,0.79913,2501.6,2501.5,0.79915]
[1749920766763,0.79913,2501.6,2501.5,3.7829]
[1749920766961,0.79913,2501.6,2501.5,4.58205]
[1749920767261,0.79913,2501.6,2501.5,3.7829]
[1749920768350,0.79913,2501.6,2501.5,4.58205]
[1749920768756,0.79913,2501.6,2501.5,3.7829]
[1749920769153,0.79913,2501.6,2501.5,5.6142]
[1749920769454,0.79915,2501.5,2501.4,0.79916]
[1749920769655,1.99782,2501.6,2501.2,1.59419009]
[1749920769851,0.79919,2501.4,2501.3,4.22469009]
[1749920770056,0.79915,2501.6,2501.5,0.79914]
[1749920770256,0.79915,2501.5,2501.4,4.00695]
[1749920770560,0.79915,2501.5,2501.4,5.0885]
[1749920771160,0.79915,2501.5,2501.4,5.88769]
[1749920771356,0.79914,2501.6,2501.5,0.79913]
[1749920771551,0.79914,2501.6,2501.5,2.67983]
[1749920772155,0.79911,2501.7,2501.6,0.7991]
[1749920772356,0.79907,2501.8,2501.7,0.79907]
[1749920772563,0.79904,2501.9,2501.8,0.79904]
[1749920772751,0.79904,2501.9,2501.8,1.8807]
[1749920773368,5.64803523,2502.1,2501.8,2.67974]
[1749920773557,5.64803523,2502.1,2501.8,2.67976]
[1749920773558,0.79903,2501.9,2501.8,2.67976]
[1749920773965,0.79901,2502.0,2501.9,0.79901]
[1749920774267,0.79901,2502.0,2501.9,1.8151]
[1749920774467,0.79901,2502.0,2501.9,9.3981]
[1749920775768,5.64803523,2502.4,2501.9,10.99229009]
[1749920775968,0.7989,2502.3,2502.2,3.2078]
[1749920776562,0.79888,2502.4,2502.3,0.79888]
[1749920776865,0.79888,2502.4,2502.3,0.79889]
[1749920776866,0.7989,2502.4,2502.3,0.79889]
[1749920777067,0.79885,2502.5,2502.4,0.79885]
[1749920777259,0.79885,2502.5,2502.4,1.1945848]
[1749920777461,0.79882,2502.6,2502.4,1.1945848]
[1749920777763,0.79883,2502.5,2502.4,1.9934248]
[1749920778162,0.79883,2502.5,2502.4,1.1945848]
[1749920778362,0.79883,2502.5,2502.4,1.9934548]
[1749920778572,0.79883,2502.5,2502.4,0.79887]
[1749920778771,0.79883,2502.5,2502.4,1.9934548]
[1749920778971,0.79883,2502.5,2502.4,1.1945848]
[1749920779266,0.79883,2502.5,2502.4,1.9934548]
[1749920779573,0.79883,2502.6,2502.5,0.79882]
[1749920779772,0.79883,2502.6,2502.5,1.99180725]
[1749920779970,0.79883,2502.6,2502.5,1.19298725]
[1749920780270,0.79883,2502.5,2502.4,1.19298725]
[1749920780666,0.79887,2502.4,2502.3,1.99186725]
[1749920780971,0.86695268,2502.5,2502.4,0.79887]
[1749920781175,0.06809268,2502.5,2502.4,1.99132384]
[1749920781371,0.06809268,2502.5,2502.4,0.79887]
[1749920781571,0.86692268,2502.5,2502.4,1.9912865]
[1749920781873,0.86692268,2502.5,2502.4,8.7474165]
[1749920782461,0.86692268,2502.5,2502.4,1.1924165]
[1749920782770,0.79887,2502.4,2502.3,9.5463165]
[1749920782972,0.79887,2502.4,2502.3,8.7474165]
[1749920783268,0.7989,2502.3,2502.2,0.00599892]
[1749920785373,0.7989,2502.3,2502.2,0.80492892]
[1749920785776,0.7989,2502.3,2502.2,0.00599892]
[1749920789072,6.44693523,2502.3,2502.2,0.00599892]
[1749920790869,6.44693523,2502.3,2502.2,7.60262892]
[1749920791274,0.79889,2502.4,2502.3,0.79887]
[1749920791479,0.79889,2502.4,2502.3,2.64227]
[1749920791774,0.79889,2502.4,2502.3,2.6423]
[1749920791981,6.51498791,2502.5,2502.4,0.79887]
[1749920792179,6.51498791,2502.5,2502.4,2.64227]
[1749920792380,5.71612791,2502.5,2502.4,3.8346865]
[1749920792678,6.51495791,2502.5,2502.4,3.8346865]
[1749920793269,5.71612791,2502.5,2502.4,2.64227]
[1749920793771,6.51495791,2502.5,2502.4,2.64227]
[1749920794180,5.71612791,2502.5,2502.4,10.19627]
[1749920794679,5.71612791,2502.5,2502.4,11.79046009]
[1749920794974,6.51495791,2502.5,2502.4,11.79046009]
[1749920795478,5.71612791,2502.5,2502.4,11.79046009]
[1749920795680,0.06809268,2502.5,2502.4,11.79046009]
[1749920796572,0.06809268,2502.5,2502.4,10.19627]
[1749920796970,0.86692268,2502.5,2502.4,9.3974]
[1749920797274,0.06809268,2502.5,2502.4,10.19627]
[1749920798873,0.06809268,2502.5,2502.4,12.58147079]
[1749920799578,0.06809268,2502.5,2502.4,17.58147079]
[1749920799774,6.44676523,2502.9,2502.8,0.79874]
[1749920800074,0.79873,2502.9,2502.8,8.35274]
[1749920800473,0.79873,2502.9,2502.8,11.89264]
[1749920800680,0.79873,2502.9,2502.8,11.0939]
[1749920801080,0.79873,2502.9,2502.8,11.89264]
[1749920801276,0.7987,2503.0,2502.9,0.7987]
[1749920801479,0.79868,2503.0,2502.9,5.49941776]
[1749920801776,0.79863,2503.2,2503.1,0.79862]
[1749920801979,3.2078,2503.5,2503.1,28.04277054]
[1749920802174,0.79861,2503.2,2503.1,1.59077054]
[1749920802379,0.79861,2503.2,2503.1,9.14477054]
[1749920802579,0.79861,2503.2,2503.1,7.554]
[1749920802774,0.79861,2503.2,2503.1,9.3544]
[1749920802975,0.82262675,2503.2,2503.1,9.3544]
[1749920803981,0.84664373,2503.2,2503.1,9.3544]
[1749920804482,0.84664373,2503.2,2503.1,10.54735853]
[1749920804784,0.87066093,2503.2,2503.1,2.99335853]
[1749920805684,0.07205093,2503.2,2503.1,2.59904]
[1749920805878,0.89467835,2503.2,2503.1,2.59904]
[1749920806080,0.09606835,2503.2,2503.1,2.59904]
[1749920806281,0.09606835,2503.2,2503.1,4.18981054]
[1749920806581,0.09606835,2503.2,2503.1,1.8004]
[1749920806582,0.89467835,2503.2,2503.1,1.8004]
[1749920806784,0.89467835,2503.2,2503.1,2.99290826]
[1749920807083,0.89467835,2503.2,2503.1,36.56104]
[1749920807288,0.89467835,2503.2,2503.1,36.95490025]
[1749920807480,0.89467835,2503.2,2503.1,37.75354025]
[1749920807675,0.09606835,2503.2,2503.1,37.75354025]
[1749920807880,0.09606835,2503.2,2503.1,38.15181054]
[1749920808975,0.09606835,2503.2,2503.1,38.94624079]
[1749920809183,0.09606835,2503.2,2503.1,43.94624079]
[1749920809381,0.09606835,2503.2,2503.1,36.56104]
[1749920809584,0.79848,2503.7,2503.6,0.79848]
[1749920809782,0.79845,2503.7,2503.6,4.39907885]
[1749920810087,0.79845,2503.7,2503.6,37.1608]
[1749920810275,0.79845,2503.7,2503.6,37.95928]
[1749920810478,0.79845,2503.7,2503.6,40.88715885]
[1749920810683,0.79845,2503.7,2503.6,39.69588]
[1749920810882,0.79845,2503.7,2503.6,4.9444]
[1749920811086,0.79845,2503.7,2503.6,38.8954]
[1749920811277,0.79843,2503.8,2503.7,0.79843]
[1749920811482,0.79843,2503.8,2503.7,1.98916159]
[1749920812489,6.98159,2504.2,2503.6,12.4644]
[1749920812490,0.79845,2503.7,2503.6,12.4644]
[1749920812789,0.79845,2503.7,2503.6,37.1538]
[1749920813185,0.79845,2503.7,2503.6,38.9756]
[1749920813989,0.79845,2503.7,2503.6,38.9746]
[1749920814293,0.79845,2503.7,2503.6,7.52]
[1749920814589,0.79852,2503.5,2503.4,0.00599892]
[1749920814791,0.79852,2503.5,2503.4,26.42699892]
[1749920815091,0.79852,2503.5,2503.4,0.00599892]
[1749920817091,5.79852,2503.5,2503.4,0.00599892]
[1749920817293,0.79852,2503.5,2503.4,0.00599892]
[1749920817690,5.79852,2503.5,2503.4,0.00599892]
[1749920817889,6.49392,2503.5,2503.4,0.00599892]
[1749920818090,0.79864,2503.1,2503.0,1.19073159]
[1749920818290,0.79868,2503.0,2502.9,32.55373159]
[1749920818480,0.79868,2503.0,2502.9,3.2078]
[1749920819184,0.79868,2503.0,2502.9,4.00651]
[1749920819384,0.79868,2503.0,2502.9,5.81641]
[1749920819590,0.79868,2503.0,2502.9,7.00714159]
[1749920819887,0.79867,2503.1,2503.0,0.79866]
[1749920820091,0.79867,2503.1,2503.0,2.60856]
[1749920820593,0.8727116,2503.2,2503.1,0.79864]
[1749920820782,0.8727116,2503.2,2503.1,1.98937159]
[1749920821182,0.0740916,2503.2,2503.1,1.98937159]
[1749920822405,0.0740916,2503.2,2503.1,0.79864]
[1749920822593,0.0740916,2503.2,2503.1,2.3870118]
[1749920822886,0.0740916,2503.2,2503.1,27.20564]
[1749920823091,0.0740916,2503.2,2503.1,29.5881977]
[1749920823291,0.0740916,2503.2,2503.1,27.20564]
[1749920823494,0.79844,2503.8,2503.7,0.79843]
[1749920823690,0.79844,2503.8,2503.7,4.00623]
[1749920823894,0.79842,2503.9,2503.8,0.79839]
[1749920824088,0.79842,2503.9,2503.8,0.79841]
[1749920824292,0.79842,2503.9,2503.8,2.49681]